[Event "Late-Titled-Tuesday-Blitz-June-25-2024"]
[Site "Chess.com"]
[Date "2024.06.25"]
[Round "8"]
[White "Arystanner"]
[Black "Sanan_Sjugirov"]
[Result "1/2-1/2"]
[WhiteElo "2838"]
[BlackElo "2999"]
[TimeControl "180+1"]
[EndTime "15:25:57 PDT"]
[Termination "Game drawn by repetition"]

1. e4 {[%clk 0:03:00.9]} 1... c5 {[%clk 0:02:48]} 2. Nf3 {[%clk 0:03:01.2]} 2...
d6 {[%clk 0:02:48.3]} 3. d4 {[%clk 0:03:01.6]} 3... cxd4 {[%clk 0:02:49.2]} 4.
Nxd4 {[%clk 0:03:02.2]} 4... Nf6 {[%clk 0:02:49.8]} 5. Nc3 {[%clk 0:03:02.8]}
5... a6 {[%clk 0:02:50.5]} 6. Be2 {[%clk 0:03:03.4]} 6... e5 {[%clk 0:02:50.5]}
7. Nb3 {[%clk 0:03:03.3]} 7... Be7 {[%clk 0:02:51.1]} 8. Qd3 {[%clk 0:03:02.9]}
8... Be6 {[%clk 0:02:48.5]} 9. O-O {[%clk 0:02:59.7]} 9... O-O {[%clk 0:02:48]}
10. Rd1 {[%clk 0:02:59]} 10... Nbd7 {[%clk 0:02:46.3]} 11. Nd5 {[%clk
0:02:59.2]} 11... Bxd5 {[%clk 0:02:42.5]} 12. exd5 {[%clk 0:03:00.1]} 12... Ne8
{[%clk 0:02:39.5]} 13. a4 {[%clk 0:02:56.2]} 13... Bg5 {[%clk 0:02:28.3]} 14. a5
{[%clk 0:02:46.4]} 14... f5 {[%clk 0:02:17.7]} 15. c4 {[%clk 0:02:42.7]} 15...
Rc8 {[%clk 0:02:15.4]} 16. Qh3 {[%clk 0:02:38.1]} 16... g6 {[%clk 0:02:10.7]}
17. Bd2 {[%clk 0:02:32.3]} 17... Bxd2 {[%clk 0:02:09.9]} 18. Nxd2 {[%clk
0:02:30.3]} 18... Nef6 {[%clk 0:01:51.9]} 19. b4 {[%clk 0:02:28.4]} 19... Qe7
{[%clk 0:01:52.4]} 20. Rac1 {[%clk 0:02:20.5]} 20... Kg7 {[%clk 0:01:48.2]} 21.
Nb3 {[%clk 0:02:20.1]} 21... Ne4 {[%clk 0:01:42.8]} 22. Qe3 {[%clk 0:02:12.4]}
22... Ng5 {[%clk 0:01:17.8]} 23. Qa7 {[%clk 0:02:05.5]} 23... f4 {[%clk
0:00:51.3]} 24. Bg4 {[%clk 0:02:03.1]} 24... h5 {[%clk 0:00:43.6]} 25. Bxd7
{[%clk 0:01:45.9]} 25... Qxd7 {[%clk 0:00:44.5]} 26. f3 {[%clk 0:01:46.5]} 26...
Kh6 {[%clk 0:00:38.9]} 27. h4 {[%clk 0:01:41.3]} 27... Nh7 {[%clk 0:00:38.6]}
28. Nd2 {[%clk 0:01:40.7]} 28... Nf6 {[%clk 0:00:38.2]} 29. Qf2 {[%clk
0:01:36.9]} 29... Rg8 {[%clk 0:00:37.1]} 30. Ne4 {[%clk 0:01:33.3]} 30... Nxe4
{[%clk 0:00:36.9]} 31. fxe4 {[%clk 0:01:34.2]} 31... g5 {[%clk 0:00:37.2]} 32.
c5 {[%clk 0:01:34.3]} 32... gxh4 {[%clk 0:00:34.3]} 33. Qxh4 {[%clk 0:01:32.5]}
33... Rg4 {[%clk 0:00:33.5]} 34. Qf6+ {[%clk 0:01:32.3]} 34... Rg6 {[%clk
0:00:33.6]} 35. Qf5 {[%clk 0:01:31.6]} 35... Qg7 {[%clk 0:00:06.9]} 36. Qxc8
{[%clk 0:01:29.4]} 36... Rxg2+ {[%clk 0:00:06.7]} 37. Kh1 {[%clk 0:01:28.8]}
37... Qg3 {[%clk 0:00:06]} 38. Qe6+ {[%clk 0:01:26.4]} 38... Kh7 {[%clk
0:00:06.3]} 39. Qf7+ {[%clk 0:01:24.6]} 39... Kh6 {[%clk 0:00:06.7]} 40. Qf6+
{[%clk 0:01:25]} 40... Kh7 {[%clk 0:00:06.8]} 41. Qf7+ {[%clk 0:01:18.6]} 41...
Kh6 {[%clk 0:00:07.2]} 42. Qf6+ {[%clk 0:01:19]} 42... Kh7 {[%clk 0:00:07.5]}
43. Qf7+ {[%clk 0:01:19.6]} 1/2-1/2

[Event "Late-Titled-Tuesday-Blitz-June-25-2024"]
[Site "Chess.com"]
[Date "2024.06.25"]
[Round "8"]
[White "Jahonas"]
[Black "SebbyMeister"]
[Result "0-1"]
[WhiteElo "2422"]
[BlackElo "2272"]
[TimeControl "180+1"]
[EndTime "15:26:03 PDT"]
[Termination "SebbyMeister won by resignation"]

1. d4 {[%clk 0:03:00.9]} 1... d5 {[%clk 0:02:57.5]} 2. c4 {[%clk 0:03:00.8]}
2... c6 {[%clk 0:02:56.6]} 3. Nf3 {[%clk 0:03:01]} 3... Nf6 {[%clk 0:02:56]} 4.
Nc3 {[%clk 0:03:01.2]} 4... e6 {[%clk 0:02:55.5]} 5. Bg5 {[%clk 0:03:00.9]} 5...
h6 {[%clk 0:02:55.3]} 6. Bxf6 {[%clk 0:03:00.2]} 6... Qxf6 {[%clk 0:02:56]} 7.
e3 {[%clk 0:02:59.9]} 7... Nd7 {[%clk 0:02:55.3]} 8. Be2 {[%clk 0:02:58.2]} 8...
g6 {[%clk 0:02:55.6]} 9. O-O {[%clk 0:02:57.8]} 9... dxc4 {[%clk 0:02:55.2]} 10.
Bxc4 {[%clk 0:02:57.4]} 10... Bg7 {[%clk 0:02:55.8]} 11. e4 {[%clk 0:02:56.2]}
11... O-O {[%clk 0:02:56.2]} 12. a4 {[%clk 0:02:55.3]} 12... c5 {[%clk
0:02:47.8]} 13. d5 {[%clk 0:02:44.1]} 13... Ne5 {[%clk 0:02:44.8]} 14. Nxe5
{[%clk 0:02:42.7]} 14... Qxe5 {[%clk 0:02:45.7]} 15. Qb3 {[%clk 0:02:36.7]}
15... exd5 {[%clk 0:02:36.7]} 16. Bxd5 {[%clk 0:02:30.7]} 16... Rb8 {[%clk
0:02:30.1]} 17. Rad1 {[%clk 0:02:17.9]} 17... b6 {[%clk 0:02:28.9]} 18. f4
{[%clk 0:02:16.5]} 18... Qe7 {[%clk 0:02:24.1]} 19. Kh1 {[%clk 0:02:06.3]} 19...
Bg4 {[%clk 0:02:21.2]} 20. Rde1 {[%clk 0:02:02]} 20... h5 {[%clk 0:02:10.9]} 21.
e5 {[%clk 0:01:45.6]} 21... h4 {[%clk 0:02:04.1]} 22. h3 {[%clk 0:01:41]} 22...
Bf5 {[%clk 0:01:56.8]} 23. Ne4 {[%clk 0:01:31.7]} 23... Bxe4 {[%clk 0:01:45.1]}
24. Rxe4 {[%clk 0:01:30.2]} 24... Rbd8 {[%clk 0:01:44.2]} 25. f5 {[%clk
0:01:22.3]} 25... Qd7 {[%clk 0:01:32.6]} 26. Bxf7+ {[%clk 0:01:04.5]} 26... Qxf7
{[%clk 0:01:25.1]} 27. e6 {[%clk 0:01:03.8]} 27... Qe7 {[%clk 0:01:21.7]} 28. f6
{[%clk 0:00:31.5]} 28... Rxf6 {[%clk 0:01:16.3]} 29. Rxf6 {[%clk 0:00:15.8]}
29... Bxf6 {[%clk 0:01:17.2]} 30. Rf4 {[%clk 0:00:14.7]} 30... Rd4 {[%clk
0:01:11.7]} 31. Rxd4 {[%clk 0:00:09.8]} 31... Bxd4 {[%clk 0:01:10.6]} 32. Qd5
{[%clk 0:00:09.1]} 32... Kg7 {[%clk 0:01:07.1]} 33. g4 {[%clk 0:00:07.8]} 33...
hxg3 {[%clk 0:01:00.6]} 34. Kg2 {[%clk 0:00:07.6]} 34... Kf6 {[%clk 0:00:59]}
0-1

[Event "Late-Titled-Tuesday-Blitz-June-25-2024"]
[Site "Chess.com"]
[Date "2024.06.25"]
[Round "8"]
[White "Duhless"]
[Black "AlexOstrovskiy"]
[Result "1-0"]
[WhiteElo "3089"]
[BlackElo "2716"]
[TimeControl "180+1"]
[EndTime "15:26:06 PDT"]
[Termination "Duhless won by resignation"]

1. e4 {[%clk 0:03:00.9]} 1... c6 {[%clk 0:02:52.8]} 2. Nc3 {[%clk 0:03:01.8]}
2... d5 {[%clk 0:02:53.2]} 3. e5 {[%clk 0:03:01.2]} 3... c5 {[%clk 0:02:50.7]}
4. d4 {[%clk 0:03:01.1]} 4... Nc6 {[%clk 0:02:45.4]} 5. dxc5 {[%clk 0:02:59.3]}
5... e6 {[%clk 0:02:44.4]} 6. Nf3 {[%clk 0:02:54]} 6... Bxc5 {[%clk 0:02:39.4]}
7. Bd3 {[%clk 0:02:54.5]} 7... f6 {[%clk 0:02:35.3]} 8. Qe2 {[%clk 0:02:50.6]}
8... fxe5 {[%clk 0:02:03.8]} 9. Nxe5 {[%clk 0:02:51.5]} 9... Nxe5 {[%clk
0:02:04.4]} 10. Qxe5 {[%clk 0:02:50.9]} 10... Nf6 {[%clk 0:02:04.5]} 11. Be3
{[%clk 0:02:44.8]} 11... Bd6 {[%clk 0:01:58.8]} 12. Bb5+ {[%clk 0:02:41.4]}
12... Kf7 {[%clk 0:01:57.4]} 13. Qg5 {[%clk 0:02:42]} 13... a6 {[%clk
0:01:39.2]} 14. Be2 {[%clk 0:02:38.7]} 14... Rf8 {[%clk 0:01:26.8]} 15. O-O-O
{[%clk 0:02:36.3]} 15... Kg8 {[%clk 0:01:26.9]} 16. Bd3 {[%clk 0:02:32.8]} 16...
Bd7 {[%clk 0:01:12.8]} 17. Rhe1 {[%clk 0:02:21.3]} 17... Rc8 {[%clk 0:01:11.4]}
18. Bd4 {[%clk 0:02:18]} 18... Qc7 {[%clk 0:00:53.5]} 19. Kb1 {[%clk 0:02:14.5]}
19... b5 {[%clk 0:00:46.3]} 20. Qh4 {[%clk 0:02:05.1]} 20... h6 {[%clk
0:00:41.9]} 21. g4 {[%clk 0:01:52.3]} 21... e5 {[%clk 0:00:38.8]} 22. g5 {[%clk
0:01:30.6]} 22... hxg5 {[%clk 0:00:35.9]} 23. Qxg5 {[%clk 0:01:29.6]} 23... exd4
{[%clk 0:00:36.4]} 24. Nxd5 {[%clk 0:01:22.5]} 24... Qd8 {[%clk 0:00:10.9]} 25.
Rg1 {[%clk 0:00:58.2]} 25... Rf7 {[%clk 0:00:11.3]} 26. Bg6 {[%clk 0:00:57.9]}
26... Bf8 {[%clk 0:00:11.1]} 27. Bxf7+ {[%clk 0:00:54.3]} 27... Kxf7 {[%clk
0:00:09.4]} 28. Qg6+ {[%clk 0:00:55.2]} 28... Ke6 {[%clk 0:00:08.4]} 29. Rxd4
{[%clk 0:00:50.3]} 29... Rc5 {[%clk 0:00:05.1]} 30. Re1+ {[%clk 0:00:45.8]} 1-0

[Event "Late-Titled-Tuesday-Blitz-June-25-2024"]
[Site "Chess.com"]
[Date "2024.06.25"]
[Round "8"]
[White "LiemLe"]
[Black "Jarming"]
[Result "1-0"]
[WhiteElo "3016"]
[BlackElo "2715"]
[TimeControl "180+1"]
[EndTime "15:26:11 PDT"]
[Termination "LiemLe won by resignation"]

1. c4 {[%clk 0:03:00.9]} 1... c5 {[%clk 0:02:52.8]} 2. Nc3 {[%clk 0:03:00.4]}
2... Nc6 {[%clk 0:02:51.6]} 3. g3 {[%clk 0:03:00.9]} 3... g6 {[%clk 0:02:51.5]}
4. Bg2 {[%clk 0:03:01.3]} 4... Bg7 {[%clk 0:02:52.4]} 5. d3 {[%clk 0:03:00.7]}
5... e6 {[%clk 0:02:52.2]} 6. Bxc6 {[%clk 0:02:56.1]} 6... bxc6 {[%clk
0:02:51.4]} 7. Qd2 {[%clk 0:02:54.2]} 7... h5 {[%clk 0:02:50.8]} 8. h3 {[%clk
0:02:44.1]} 8... d6 {[%clk 0:02:36.6]} 9. b3 {[%clk 0:02:43.8]} 9... f5 {[%clk
0:02:29.1]} 10. Bb2 {[%clk 0:02:28.1]} 10... Nf6 {[%clk 0:02:26.5]} 11. O-O-O
{[%clk 0:02:06]} 11... h4 {[%clk 0:02:24.6]} 12. Kb1 {[%clk 0:02:04.5]} 12...
hxg3 {[%clk 0:02:23.7]} 13. fxg3 {[%clk 0:02:05.4]} 13... Nh5 {[%clk 0:02:19.3]}
14. g4 {[%clk 0:01:59.1]} 14... Ng3 {[%clk 0:02:15.3]} 15. Rh2 {[%clk
0:01:58.8]} 15... fxg4 {[%clk 0:02:12.7]} 16. Rg2 {[%clk 0:01:24.9]} 16... gxh3
{[%clk 0:02:02.9]} 17. Rxg3 {[%clk 0:01:25.2]} 17... h2 {[%clk 0:02:03.2]} 18.
Nh3 {[%clk 0:01:25.9]} 18... Qh4 {[%clk 0:01:55.2]} 19. Ne4 {[%clk 0:01:24.2]}
19... d5 {[%clk 0:01:47.6]} 20. Bxg7 {[%clk 0:01:10.6]} 20... dxe4 {[%clk
0:01:46.9]} 21. Qe3 {[%clk 0:00:59.4]} 21... Rh7 {[%clk 0:01:26.8]} 22. Be5
{[%clk 0:00:58.9]} 22... Rh5 {[%clk 0:01:26.5]} 23. d4 {[%clk 0:00:49.8]} 23...
Ba6 {[%clk 0:01:04]} 24. Rh1 {[%clk 0:00:43.6]} 24... O-O-O {[%clk 0:00:59.1]}
25. Bf4 {[%clk 0:00:21.3]} 25... cxd4 {[%clk 0:00:54.8]} 26. Qxe4 {[%clk
0:00:21.3]} 26... Bb7 {[%clk 0:00:51.9]} 27. Qxe6+ {[%clk 0:00:21.6]} 27... Rd7
{[%clk 0:00:50.4]} 28. Rxh2 {[%clk 0:00:21.5]} 28... d3 {[%clk 0:00:47.2]} 29.
Rxd3 {[%clk 0:00:19.5]} 29... Qe1+ {[%clk 0:00:43.4]} 30. Kc2 {[%clk 0:00:19.5]}
30... Rd5 {[%clk 0:00:37.8]} 31. cxd5 {[%clk 0:00:19.3]} 31... cxd5 {[%clk
0:00:34.7]} 32. Qe8+ {[%clk 0:00:18.3]} 32... Rd8 {[%clk 0:00:34.4]} 33. Qe6+
{[%clk 0:00:18.4]} 33... Rd7 {[%clk 0:00:34.7]} 34. Rc3+ {[%clk 0:00:19]} 1-0

[Event "Late-Titled-Tuesday-Blitz-June-25-2024"]
[Site "Chess.com"]
[Date "2024.06.25"]
[Round "8"]
[White "harshu27"]
[Black "Beaterawn"]
[Result "0-1"]
[WhiteElo "2513"]
[BlackElo "2414"]
[TimeControl "180+1"]
[EndTime "15:26:12 PDT"]
[Termination "Beaterawn won by resignation"]

1. d4 {[%clk 0:03:00.9]} 1... f5 {[%clk 0:02:57.3]} 2. c4 {[%clk 0:02:58.1]}
2... Nf6 {[%clk 0:02:57.1]} 3. Nc3 {[%clk 0:02:58.4]} 3... g6 {[%clk 0:02:57.3]}
4. g3 {[%clk 0:02:58.5]} 4... Bg7 {[%clk 0:02:57.7]} 5. Bg2 {[%clk 0:02:58.9]}
5... O-O {[%clk 0:02:57.9]} 6. Nf3 {[%clk 0:02:59.1]} 6... d6 {[%clk 0:02:57.8]}
7. O-O {[%clk 0:02:58.9]} 7... c6 {[%clk 0:02:58.4]} 8. Re1 {[%clk 0:02:56.6]}
8... Ne4 {[%clk 0:02:58.5]} 9. Nd2 {[%clk 0:02:52.9]} 9... d5 {[%clk 0:02:46.8]}
10. cxd5 {[%clk 0:02:40.7]} 10... cxd5 {[%clk 0:02:45.5]} 11. e3 {[%clk
0:02:40.9]} 11... Nc6 {[%clk 0:02:39.3]} 12. Bf1 {[%clk 0:02:25.5]} 12... e6
{[%clk 0:02:34.6]} 13. a3 {[%clk 0:02:24.9]} 13... h5 {[%clk 0:02:17.8]} 14. f3
{[%clk 0:02:17.9]} 14... Nd6 {[%clk 0:02:12]} 15. Kh1 {[%clk 0:02:02.9]} 15...
h4 {[%clk 0:02:07.9]} 16. b4 {[%clk 0:02:01.6]} 16... hxg3 {[%clk 0:02:01.1]}
17. hxg3 {[%clk 0:02:02.5]} 17... Qg5 {[%clk 0:02:00.2]} 18. Kg2 {[%clk
0:01:52.1]} 18... Kf7 {[%clk 0:01:56.2]} 19. Nb3 {[%clk 0:01:41.6]} 19... Rh8
{[%clk 0:01:52.5]} 20. Bd3 {[%clk 0:01:26.3]} 20... b6 {[%clk 0:01:05.2]} 21.
Bd2 {[%clk 0:01:20.9]} 21... Bd7 {[%clk 0:01:04.7]} 22. e4 {[%clk 0:01:19.8]}
22... Qh5 {[%clk 0:01:01.2]} 23. Rh1 {[%clk 0:01:04.8]} 23... Qxh1+ {[%clk
0:01:01.5]} 24. Qxh1 {[%clk 0:01:04.5]} 24... Rxh1 {[%clk 0:01:02.4]} 25. Rxh1
{[%clk 0:01:04.1]} 25... dxe4 {[%clk 0:01:03]} 26. fxe4 {[%clk 0:01:03.8]} 26...
Nxd4 {[%clk 0:01:03.5]} 27. Nxd4 {[%clk 0:00:16.9]} 27... Bxd4 {[%clk
0:01:04.4]} 28. e5 {[%clk 0:00:13.8]} 28... Bxe5 {[%clk 0:01:02.3]} 29. Rh7+
{[%clk 0:00:13.5]} 29... Bg7 {[%clk 0:01:01.4]} 30. Bf4 {[%clk 0:00:12.5]} 30...
Ne8 {[%clk 0:00:57.3]} 31. Rh1 {[%clk 0:00:04.9]} 31... Bc6+ {[%clk 0:00:56.3]}
32. Kf2 {[%clk 0:00:04.3]} 32... Bxh1 {[%clk 0:00:56.4]} 0-1

[Event "Late-Titled-Tuesday-Blitz-June-25-2024"]
[Site "Chess.com"]
[Date "2024.06.25"]
[Round "8"]
[White "AlexeiShirov"]
[Black "Mikhail_Golubev"]
[Result "0-1"]
[WhiteElo "2859"]
[BlackElo "2671"]
[TimeControl "180+1"]
[EndTime "15:26:13 PDT"]
[Termination "Mikhail_Golubev won by resignation"]

1. e4 {[%clk 0:03:00.9]} 1... c5 {[%clk 0:02:59.9]} 2. Nf3 {[%clk 0:03:00.8]}
2... d6 {[%clk 0:03:00.2]} 3. d4 {[%clk 0:03:01]} 3... Nf6 {[%clk 0:03:00.4]} 4.
Nc3 {[%clk 0:02:58.5]} 4... cxd4 {[%clk 0:03:00.7]} 5. Nxd4 {[%clk 0:02:58.5]}
5... g6 {[%clk 0:03:01]} 6. Be3 {[%clk 0:02:58.1]} 6... Bg7 {[%clk 0:03:01.2]}
7. f3 {[%clk 0:02:57.9]} 7... Nc6 {[%clk 0:03:01.4]} 8. Qd2 {[%clk 0:02:52.1]}
8... O-O {[%clk 0:03:01.8]} 9. O-O-O {[%clk 0:02:51.8]} 9... d5 {[%clk
0:03:00.9]} 10. exd5 {[%clk 0:02:51.7]} 10... Nxd5 {[%clk 0:03:00.9]} 11. Nxc6
{[%clk 0:02:52.3]} 11... bxc6 {[%clk 0:03:00.9]} 12. Bd4 {[%clk 0:02:52.9]}
12... e5 {[%clk 0:03:00.7]} 13. Bc5 {[%clk 0:02:53]} 13... Be6 {[%clk
0:03:00.7]} 14. Ne4 {[%clk 0:02:50.6]} 14... Re8 {[%clk 0:03:00.8]} 15. h4
{[%clk 0:02:44.1]} 15... h5 {[%clk 0:02:59.7]} 16. Bc4 {[%clk 0:02:38.2]} 16...
Nf4 {[%clk 0:02:56.6]} 17. Qc3 {[%clk 0:02:28.7]} 17... Bd5 {[%clk 0:02:32.1]}
18. g3 {[%clk 0:02:14.2]} 18... Ne6 {[%clk 0:02:25.6]} 19. Be3 {[%clk
0:02:01.3]} 19... Nd4 {[%clk 0:02:16.3]} 20. Ng5 {[%clk 0:02:00.2]} 20... Nf5
{[%clk 0:00:42.5]} 21. Bf2 {[%clk 0:01:47.9]} 21... e4 {[%clk 0:00:39]} 22. Qa3
{[%clk 0:01:28]} 22... e3 {[%clk 0:00:39]} 23. Be1 {[%clk 0:01:26.6]} 23... Rb8
{[%clk 0:00:39.1]} 24. c3 {[%clk 0:01:21.5]} 24... Bf8 {[%clk 0:00:33]} 25. Qa4
{[%clk 0:01:17.3]} 25... Qb6 {[%clk 0:00:31.8]} 26. Bb3 {[%clk 0:01:13.7]} 26...
Bxb3 {[%clk 0:00:30]} 27. Qxb3 {[%clk 0:01:09.6]} 27... Qxb3 {[%clk 0:00:30.1]}
28. axb3 {[%clk 0:01:09.2]} 28... Rxb3 {[%clk 0:00:30.5]} 29. Rd7 {[%clk
0:00:57.7]} 29... Reb8 {[%clk 0:00:26.9]} 30. Rh2 {[%clk 0:00:56.8]} 30... Ba3
{[%clk 0:00:26.5]} 31. bxa3 {[%clk 0:00:39.3]} 31... Rb1+ {[%clk 0:00:23.5]} 32.
Kc2 {[%clk 0:00:36.3]} 32... R8b2+ {[%clk 0:00:23.5]} 33. Kd3 {[%clk 0:00:34.7]}
33... Rxh2 {[%clk 0:00:23.8]} 0-1

[Event "Late-Titled-Tuesday-Blitz-June-25-2024"]
[Site "Chess.com"]
[Date "2024.06.25"]
[Round "8"]
[White "VirtualCoach"]
[Black "AlexanderMatlak"]
[Result "1-0"]
[WhiteElo "2363"]
[BlackElo "2452"]
[TimeControl "180+1"]
[EndTime "15:26:15 PDT"]
[Termination "VirtualCoach won on time"]

1. e4 {[%clk 0:03:00.9]} 1... c5 {[%clk 0:02:59.6]} 2. Nf3 {[%clk 0:03:00.5]}
2... d6 {[%clk 0:03:00]} 3. d4 {[%clk 0:03:00.3]} 3... cxd4 {[%clk 0:03:00.9]}
4. Nxd4 {[%clk 0:03:00.4]} 4... Nf6 {[%clk 0:03:01.2]} 5. Nc3 {[%clk 0:03:00.1]}
5... a6 {[%clk 0:03:01.7]} 6. f3 {[%clk 0:02:58.5]} 6... e6 {[%clk 0:03:00.5]}
7. Be3 {[%clk 0:02:58.1]} 7... b5 {[%clk 0:03:00.3]} 8. a3 {[%clk 0:02:56.7]}
8... Nbd7 {[%clk 0:02:58.8]} 9. Qd2 {[%clk 0:02:57]} 9... Bb7 {[%clk 0:02:59]}
10. O-O-O {[%clk 0:02:56.9]} 10... Rc8 {[%clk 0:02:58.8]} 11. g4 {[%clk
0:02:56.3]} 11... Nb6 {[%clk 0:02:58.9]} 12. Nb3 {[%clk 0:02:55.8]} 12... Nfd7
{[%clk 0:02:53.9]} 13. Na5 {[%clk 0:02:55]} 13... Ba8 {[%clk 0:02:54.1]} 14. h4
{[%clk 0:02:47.6]} 14... Be7 {[%clk 0:02:53]} 15. h5 {[%clk 0:02:45.4]} 15... d5
{[%clk 0:02:53.5]} 16. exd5 {[%clk 0:02:38.7]} 16... Nxd5 {[%clk 0:02:53.5]} 17.
Nxd5 {[%clk 0:02:32]} 17... Bxd5 {[%clk 0:02:54.4]} 18. Be2 {[%clk 0:02:27.6]}
18... O-O {[%clk 0:02:47.8]} 19. Kb1 {[%clk 0:02:26.6]} 19... Ne5 {[%clk
0:02:34.9]} 20. Rhf1 {[%clk 0:02:21.2]} 20... Qc7 {[%clk 0:02:25.6]} 21. f4
{[%clk 0:02:12.2]} 21... Nc4 {[%clk 0:02:23.4]} 22. Nxc4 {[%clk 0:02:11.6]}
22... bxc4 {[%clk 0:02:12.7]} 23. Bd4 {[%clk 0:02:08.8]} 23... Rfd8 {[%clk
0:01:59]} 24. Qc3 {[%clk 0:02:07.4]} 24... Bf8 {[%clk 0:01:37.5]} 25. h6 {[%clk
0:01:49.7]} 25... Bg2 {[%clk 0:01:21.2]} 26. Rg1 {[%clk 0:01:42.6]} 26... Rxd4
{[%clk 0:01:18.5]} 27. Rxd4 {[%clk 0:01:32.8]} 27... Bd5 {[%clk 0:01:15.8]} 28.
g5 {[%clk 0:01:31.3]} 28... Qb6 {[%clk 0:00:42.2]} 29. Rgd1 {[%clk 0:01:28]}
29... Rb8 {[%clk 0:00:33.2]} 30. Bxc4 {[%clk 0:01:23.2]} 30... Rc8 {[%clk
0:00:21.6]} 31. Qd3 {[%clk 0:01:11.3]} 31... Bxc4 {[%clk 0:00:11.7]} 32. Rxc4
{[%clk 0:01:10.4]} 32... Rb8 {[%clk 0:00:12.1]} 33. Qc3 {[%clk 0:01:09.4]} 33...
a5 {[%clk 0:00:07.2]} 34. Rh1 {[%clk 0:01:05.8]} 1-0

[Event "Late-Titled-Tuesday-Blitz-June-25-2024"]
[Site "Chess.com"]
[Date "2024.06.25"]
[Round "8"]
[White "cthulhuuu"]
[Black "chessdoll90"]
[Result "1-0"]
[WhiteElo "2396"]
[BlackElo "2488"]
[TimeControl "180+1"]
[EndTime "15:26:16 PDT"]
[Termination "cthulhuuu won by checkmate"]

1. e4 {[%clk 0:03:00]} 1... c5 {[%clk 0:02:58.9]} 2. Nf3 {[%clk 0:02:53.4]} 2...
Nc6 {[%clk 0:02:59.1]} 3. d3 {[%clk 0:02:53.4]} 3... g6 {[%clk 0:02:58.3]} 4. g3
{[%clk 0:02:53.7]} 4... Bg7 {[%clk 0:02:58.8]} 5. Bg2 {[%clk 0:02:54.4]} 5... d6
{[%clk 0:02:59.3]} 6. O-O {[%clk 0:02:54.9]} 6... e5 {[%clk 0:02:59.9]} 7. Nc3
{[%clk 0:02:54.9]} 7... Nge7 {[%clk 0:03:00.5]} 8. Nd2 {[%clk 0:02:55.5]} 8...
O-O {[%clk 0:03:01.1]} 9. Nc4 {[%clk 0:02:56.3]} 9... Be6 {[%clk 0:03:01.1]} 10.
Nd5 {[%clk 0:02:56.9]} 10... f5 {[%clk 0:02:58]} 11. a4 {[%clk 0:02:54.8]} 11...
Qd7 {[%clk 0:02:56.6]} 12. c3 {[%clk 0:02:54]} 12... h6 {[%clk 0:02:45.5]} 13.
a5 {[%clk 0:02:51.7]} 13... g5 {[%clk 0:02:43.6]} 14. Qa4 {[%clk 0:02:48.8]}
14... f4 {[%clk 0:02:40.8]} 15. f3 {[%clk 0:02:42.7]} 15... fxg3 {[%clk
0:02:38.4]} 16. hxg3 {[%clk 0:02:42.7]} 16... Ng6 {[%clk 0:02:38.9]} 17. Nce3
{[%clk 0:02:19.9]} 17... Rf7 {[%clk 0:02:33]} 18. a6 {[%clk 0:02:01.7]} 18... b6
{[%clk 0:02:22.9]} 19. Nf5 {[%clk 0:02:00.3]} 19... Rb8 {[%clk 0:01:46.3]} 20.
c4 {[%clk 0:01:39.9]} 20... b5 {[%clk 0:01:36.2]} 21. cxb5 {[%clk 0:01:36.4]}
21... Nd8 {[%clk 0:01:10.5]} 22. Bh3 {[%clk 0:01:28.9]} 22... Qxb5 {[%clk
0:01:04.4]} 23. Qxb5 {[%clk 0:01:28.8]} 23... Rxb5 {[%clk 0:01:04.4]} 24. Nxd6
{[%clk 0:01:28.9]} 24... Bxh3 {[%clk 0:01:00]} 25. Nxb5 {[%clk 0:01:29.2]} 25...
Bxf1 {[%clk 0:00:59.5]} 26. Kxf1 {[%clk 0:01:29.6]} 26... Rxf3+ {[%clk
0:00:59.1]} 27. Ke2 {[%clk 0:01:26.4]} 27... Rxg3 {[%clk 0:00:56]} 28. Nxa7
{[%clk 0:01:26.1]} 28... h5 {[%clk 0:00:52.5]} 29. Nb5 {[%clk 0:01:26.5]} 29...
Nc6 {[%clk 0:00:51.6]} 30. a7 {[%clk 0:01:22.6]} 30... Nxa7 {[%clk 0:00:51]} 31.
Rxa7 {[%clk 0:01:23.5]} 31... h4 {[%clk 0:00:47.7]} 32. Kf2 {[%clk 0:00:54.9]}
32... Rxd3 {[%clk 0:00:44.1]} 33. Nd6 {[%clk 0:00:54.9]} 33... h3 {[%clk
0:00:40.4]} 34. Nf5 {[%clk 0:00:52.8]} 34... Bf8 {[%clk 0:00:28.3]} 35. Bxg5
{[%clk 0:00:48]} 35... Rd1 {[%clk 0:00:16.7]} 36. Nf6+ {[%clk 0:00:47.8]} 36...
Kh8 {[%clk 0:00:15.8]} 37. Rh7# {[%clk 0:00:48.1]} 1-0

[Event "Late-Titled-Tuesday-Blitz-June-25-2024"]
[Site "Chess.com"]
[Date "2024.06.25"]
[Round "8"]
[White "rockstar0902"]
[Black "XDPS"]
[Result "0-1"]
[WhiteElo "2627"]
[BlackElo "2832"]
[TimeControl "180+1"]
[EndTime "15:26:21 PDT"]
[Termination "XDPS won on time"]

1. c4 {[%clk 0:03:00.9]} 1... g6 {[%clk 0:02:56]} 2. Nc3 {[%clk 0:03:00]} 2...
Bg7 {[%clk 0:02:56.6]} 3. d4 {[%clk 0:02:58.9]} 3... d6 {[%clk 0:02:56.5]} 4. e4
{[%clk 0:02:58.4]} 4... Nf6 {[%clk 0:02:55.5]} 5. f3 {[%clk 0:02:57.7]} 5... O-O
{[%clk 0:02:55]} 6. Be3 {[%clk 0:02:57.9]} 6... c5 {[%clk 0:02:55.2]} 7. d5
{[%clk 0:02:57.6]} 7... e6 {[%clk 0:02:54.9]} 8. Qd2 {[%clk 0:02:57]} 8... exd5
{[%clk 0:02:55.4]} 9. cxd5 {[%clk 0:02:57.9]} 9... a6 {[%clk 0:02:53.4]} 10. a4
{[%clk 0:02:58]} 10... Re8 {[%clk 0:02:53.5]} 11. Be2 {[%clk 0:02:57.3]} 11...
Nbd7 {[%clk 0:02:52.6]} 12. Nh3 {[%clk 0:02:56.9]} 12... h5 {[%clk 0:02:49.7]}
13. Nf2 {[%clk 0:02:56.5]} 13... h4 {[%clk 0:02:49.5]} 14. Bg5 {[%clk
0:02:44.4]} 14... Ne5 {[%clk 0:02:45.4]} 15. Qf4 {[%clk 0:02:39.6]} 15... h3
{[%clk 0:02:41.5]} 16. gxh3 {[%clk 0:02:35]} 16... Nh5 {[%clk 0:02:38.5]} 17.
Qh4 {[%clk 0:02:27.9]} 17... Qb6 {[%clk 0:02:28.1]} 18. Ra2 {[%clk 0:01:45.4]}
18... f6 {[%clk 0:02:19.2]} 19. Bd2 {[%clk 0:01:43]} 19... c4 {[%clk 0:02:03.5]}
20. f4 {[%clk 0:01:35.7]} 20... Nd3+ {[%clk 0:02:03]} 21. Nxd3 {[%clk
0:01:35.7]} 21... cxd3 {[%clk 0:02:03.9]} 22. Bxh5 {[%clk 0:01:35.6]} 22... gxh5
{[%clk 0:02:03.8]} 23. Qxh5 {[%clk 0:01:33.9]} 23... Bd7 {[%clk 0:02:00.8]} 24.
Qg6 {[%clk 0:01:05.4]} 24... Re7 {[%clk 0:02:00]} 25. h4 {[%clk 0:01:04.5]}
25... Be8 {[%clk 0:01:52.8]} 26. Qg4 {[%clk 0:01:03.3]} 26... f5 {[%clk
0:01:48.5]} 27. Qg5 {[%clk 0:00:57.4]} 27... Kf8 {[%clk 0:01:34.6]} 28. Qxf5+
{[%clk 0:00:33.1]} 28... Bf7 {[%clk 0:01:34.3]} 29. h5 {[%clk 0:00:12.6]} 29...
Rae8 {[%clk 0:01:33.5]} 30. e5 {[%clk 0:00:06]} 30... dxe5 {[%clk 0:01:33]} 31.
d6 {[%clk 0:00:05.1]} 31... Qxd6 {[%clk 0:01:28.2]} 32. O-O {[%clk 0:00:04.3]}
32... e4 {[%clk 0:01:25.7]} 33. h6 {[%clk 0:00:03.6]} 33... Qxh6 {[%clk
0:01:25.1]} 34. Nd5 {[%clk 0:00:03.9]} 34... Re6 {[%clk 0:01:16]} 35. Bb4+
{[%clk 0:00:03]} 35... Kg8 {[%clk 0:01:16.6]} 36. Kh1 {[%clk 0:00:02.9]} 36...
Rg6 {[%clk 0:01:12]} 37. Ne7+ {[%clk 0:00:02.2]} 37... Rxe7 {[%clk 0:01:12.2]}
38. Bxe7 {[%clk 0:00:03.1]} 38... Bxa2 {[%clk 0:01:05.9]} 39. Qxe4 {[%clk
0:00:02.5]} 39... Qh3 {[%clk 0:01:02.7]} 0-1